fUSD/lending_fUSD_20250504
["ID","MTS","AMOUNT","RATE_DAILY","PERIOD"]
[359870117,1746389455665,-450.0,0.00019998,2]
[359870118,1746389455674,-1618.96,0.00019998,2]
[359870119,1746389455683,-450.0,0.00019998,2]
[359870120,1746389455693,-1618.96,0.00019998,2]
[359870121,1746389455702,-450.0,0.00019998,2]
[359870122,1746389455711,-470.0,0.00019998,2]
[359870123,1746389455721,-450.0,0.00019998,2]
[359870124,1746389455730,-1618.96,0.00019998,2]
[359870125,1746389455741,-450.0,0.00019998,2]
[359870126,1746389455750,-1618.96,0.00019998,2]
[359870127,1746389455759,-450.0,0.00019998,2]
[359870128,1746389455768,-450.0,0.00019998,2]
[359870129,1746389455777,-1618.96,0.00019998,2]
[359870130,1746389455787,-450.0,0.00019998,2]
[359870131,1746389455796,-1618.96,0.00019998,2]
[359870132,1746389455806,-490.0,0.00019998,2]
[359870133,1746389455815,-151.0,0.00019998,2]
[359870134,1746389455824,-151.0,0.00019998,2]
[359870135,1746389455834,-185.019699,0.00019998,2]
[359870136,1746389455843,-490.0,0.00019998,2]
[359870137,1746389455852,-450.0,0.00019998,2]
[359870138,1746389455861,-267.88,0.00019998,2]
[359870139,1746389455870,-490.0,0.00019998,2]
[359870140,1746389455879,-490.0,0.00019998,2]
[359870141,1746389455888,-1063.71,0.00019998,2]
[359870142,1746389455898,-1063.71,0.00019998,2]
[359870143,1746389455908,-1063.71,0.00019998,2]
[359870144,1746389455917,-1063.71,0.00019998,2]
[359870145,1746389455926,-1063.71,0.00019998,2]
[359870146,1746389455936,-450.0,0.00019998,2]
[359870147,1746389455946,-1063.71,0.00019998,2]
[359870148,1746389455955,-524.67,0.00019998,2]
[359870149,1746389455965,-1063.71,0.00019998,2]
[359870150,1746389455975,-490.0,0.00019998,2]
[359870151,1746389455985,-490.0,0.00019998,2]
[359870152,1746389455994,-490.0,0.00019998,2]
[359870153,1746389456004,-490.0,0.00019998,2]
[359870154,1746389456013,-490.0,0.00019998,2]
[359870155,1746389456023,-450.0,0.00019998,2]
[359870156,1746389456033,-515.5,0.00019998,2]
[359870157,1746389456043,-549.62,0.00019998,2]
[359870158,1746389456052,-490.0,0.00019998,2]
[359870159,1746389456061,-490.0,0.00019998,2]
[359870160,1746389456071,-1349.27,0.00019998,2]
[359870161,1746389456080,-1349.27,0.00019998,2]
[359870162,1746389456089,-1349.27,0.00019998,2]
[359870163,1746389456099,-1349.27,0.00019998,2]
[359870164,1746389456108,-450.0,0.00019998,2]
[359870165,1746389456118,-1349.27,0.00019998,2]
[359870166,1746389456127,-490.0,0.00019998,2]
[359870167,1746389456136,-1349.27,0.00019998,2]
[359870168,1746389456146,-1349.27,0.00019998,2]
[359870169,1746389456155,-490.0,0.00019998,2]
[359870170,1746389456164,-450.0,0.00019998,2]
[359870171,1746389456174,-490.0,0.00019998,2]
[359870172,1746389456183,-450.0,0.00019998,2]
[359870173,1746389456193,-250.77940542,0.00019998,2]
[359870174,1746389456203,-450.0,0.00019998,2]
[359870175,1746389456213,-373.92,0.00019998,2]
[359870176,1746389456223,-433.59826765,0.00019998,2]
[359870177,1746389456231,-450.0,0.00019998,2]
[359870178,1746389456241,-160.2752072,0.00019998,2]
[359870179,1746389456250,-490.0,0.00019998,2]
[359870180,1746389456259,-327.49,0.00019998,2]
[359870181,1746389456269,-490.0,0.00019998,2]
[359870182,1746389456278,-490.0,0.00019998,2]
[359870183,1746389456287,-490.0,0.00019998,2]
[359870184,1746389456296,-450.0,0.00019998,2]
[359870185,1746389456306,-510.24,0.00019998,2]
[359870186,1746389456315,-490.0,0.00019998,2]
[359870187,1746389456325,-490.0,0.00019998,2]
[359870188,1746389456335,-450.0,0.00019998,2]
[359870189,1746389456345,-450.0,0.00019998,2]
[359870190,1746389456355,-490.0,0.00019998,2]
[359870191,1746389456364,-490.0,0.00019998,2]
[359870192,1746389456375,-490.0,0.00019998,2]
[359870193,1746389456384,-393.92167113,0.00019998,2]
[359870194,1746389456394,-490.0,0.00019998,2]
[359870195,1746389456404,-450.0,0.00019998,2]
[359870196,1746389456416,-490.0,0.00019998,2]
[359870197,1746389456425,-450.0,0.00019998,2]
[359870198,1746389456434,-450.0,0.00019998,2]
[359870199,1746389456444,-490.0,0.00019998,2]
[359870200,1746389456454,-205.26,0.00019998,2]
[359870201,1746389456463,-450.0,0.00019998,2]
[359870202,1746389456472,-519.61,0.00019998,2]
[359870203,1746389456481,-450.0,0.00019998,2]
[359870204,1746389456491,-450.0,0.00019998,2]
[359870205,1746389456605,-450.0,0.00019998,2]
[359870206,1746389456628,-490.0,0.00019998,2]
[359870207,1746389456637,-450.0,0.00019998,2]
[359870208,1746389456647,-450.0,0.00019998,2]
[359870209,1746389456657,-450.0,0.00019998,2]
[359870210,1746389456667,-532.85,0.00019998,2]
[359870211,1746389456677,-490.0,0.00019998,2]
[359870212,1746389456687,-339.18302142,0.00019998,2]
[359870213,1746389456697,-417.89,0.00019998,2]
[359870214,1746389456707,-450.0,0.00019998,2]
[359870215,1746389456717,-351.84,0.00019998,2]
[359870216,1746389456727,-490.0,0.00019998,2]
[359870217,1746389456737,-490.0,0.00019998,2]
[359870218,1746389456747,-450.0,0.00019998,2]
[359870219,1746389456756,-490.0,0.00019998,2]
[359870220,1746389456766,-490.0,0.00019998,2]
[359870221,1746389456775,-450.0,0.00019998,2]
[359870222,1746389456794,-490.0,0.00019998,2]
[359870223,1746389456804,-490.0,0.00019998,2]
[359870224,1746389456813,-285.1,0.00019998,2]
[359870225,1746389456822,-450.0,0.00019998,2]
[359870226,1746389456831,-450.0,0.00019998,2]
[359870227,1746389456841,-490.0,0.00019998,2]
[359870228,1746389456850,-560.89342385,0.00019998,2]
[359870229,1746389456859,-490.0,0.00019998,2]
[359870230,1746389456869,-490.0,0.00019998,2]
[359870231,1746389456878,-1291.17,0.00019998,2]
[359870232,1746389456888,-1291.17,0.00019998,2]
[359870233,1746389456897,-1291.17,0.00019998,2]
[359870234,1746389456907,-1291.17,0.00019998,2]
[359870235,1746389456916,-1291.17,0.00019998,2]
[359870236,1746389456926,-1291.17,0.00019998,2]
[359870237,1746389456935,-1291.17,0.00019998,2]
[359870238,1746389456944,-490.0,0.00019998,2]
[359870239,1746389456954,-490.0,0.00019998,2]
[359870240,1746389456963,-450.0,0.00019998,2]
[359870241,1746389456972,-450.0,0.00019998,2]
[359870242,1746389456982,-450.0,0.00019998,2]
[359870243,1746389456991,-392.55,0.00019998,2]
[359870244,1746389457000,-178.04704092,0.00019998,2]
[359870245,1746389457010,-490.0,0.00019998,2]
[359870246,1746389457020,-490.0,0.00019998,2]
[359870247,1746389457030,-490.0,0.00019998,2]
[359870248,1746389457040,-490.0,0.00019998,2]
[359870249,1746389457049,-456.36,0.00019998,2]
[359870250,1746389457058,-466.07,0.00019998,2]
[359870251,1746389457068,-490.0,0.00019998,2]
[359870252,1746389457077,-450.0,0.00019998,2]
[359870253,1746389457087,-450.0,0.00019998,2]
[359870254,1746389457096,-18463.01,0.00019998,2]
[359870255,1746389457106,-450.0,0.00019998,2]
[359870256,1746389457115,-18463.01,0.00019998,2]
[359870257,1746389457124,-450.0,0.00019998,2]
[359870258,1746389457134,-18463.01,0.00019998,2]
[359870259,1746389457144,-450.0,0.00019998,2]
[359870260,1746389457153,-18463.01,0.00019998,2]
[359870261,1746389457163,-319.52,0.00019998,2]
[359870262,1746389457173,-450.0,0.00019998,2]
[359870263,1746389457183,-18463.01,0.00019998,2]
[359870264,1746389457193,-450.0,0.00019998,2]
[359870265,1746389457202,-450.0,0.00019998,2]
[359870266,1746389457211,-18463.01,0.00019998,2]
[359870267,1746389457221,-490.0,0.00019998,2]
[359870268,1746389457231,-3093.23573961,0.00019998,2]
[359870269,1746389457473,-7242.98743089,0.00019998,2]
[359870270,1746389457485,-8126.7868295,0.00019998,2]
[359870271,1746389457495,-775.17,0.00019998,2]
[359870272,1746389457504,-775.17,0.00019998,2]
[359870273,1746389457513,-775.17,0.00019998,2]
[359870274,1746389457522,-652.10317053,0.00019998,2]
[359870275,1746389457533,-123.06682947,0.00019998,2]
[359870276,1746389457542,-775.17,0.00019998,2]
[359870277,1746389457552,-775.17,0.00019998,2]
[359870278,1746389457564,-775.17,0.00019998,2]
[359870279,1746389457573,-500.0,0.00019998,2]
[359870280,1746389457582,-490.0,0.00019998,2]
[359870281,1746389457591,-500.0,0.00019998,2]
[359870282,1746389457601,-517.74030655,0.00019998,2]
[359870283,1746389457610,-450.0,0.00019998,2]
[359870284,1746389457619,-470.0,0.00019998,2]
[359870285,1746389457628,-450.0,0.00019998,2]
[359870286,1746389457638,-450.0,0.00019998,2]
[359870287,1746389457647,-450.0,0.00019998,2]
[359870288,1746389457657,-245.54,0.00019998,2]
[359870289,1746389457667,-163.32147488,0.00019998,2]
[359870290,1746389457676,-490.0,0.00019998,2]
[359870291,1746389457684,-152.19215717,0.00019998,2]
[359870292,1746389457694,-490.0,0.00019998,2]
[359870293,1746389457703,-586.74569545,0.00019998,2]
[359870294,1746389457712,-450.0,0.00019998,2]
[359870295,1746389457721,-490.0,0.00019998,2]
[359870296,1746389457730,-490.0,0.00019998,2]
[359870297,1746389457740,-490.0,0.00019998,2]
[359870298,1746389457749,-452.61659452,0.00019998,2]
[359870299,1746389457758,-490.0,0.00019998,2]
[359870300,1746389457767,-450.0,0.00019998,2]
[359870301,1746389457777,-231.01,0.00019998,2]
[359870302,1746389457786,-450.0,0.00019998,2]
[359870303,1746389457795,-490.0,0.00019998,2]
[359870304,1746389457806,-450.0,0.00019998,2]
[359870305,1746389457815,-450.0,0.00019998,2]
[359870306,1746389457824,-410.16,0.00019998,2]
[359870307,1746389457834,-320.37,0.00019998,2]
[359870308,1746389457842,-450.0,0.00019998,2]
[359870309,1746389457851,-490.0,0.00019998,2]
[359870310,1746389457860,-450.0,0.00019998,2]
[359870311,1746389457869,-500.06,0.00019998,2]
[359870312,1746389457879,-490.0,0.00019998,2]
[359870313,1746389457889,-490.0,0.00019998,2]
[359870314,1746389457899,-739.31334196,0.00019998,2]
[359870315,1746389457917,-695.072,0.00019998,2]
[359870316,1746389458071,-450.0,0.00019997,2]
[359870317,1746389458084,-470.0,0.00019997,2]
[359870318,1746389458095,-427.44465804,0.00019998,2]
[359870319,1746389458105,-1861.83,0.00019998,2]
[359870320,1746389458115,-1861.83,0.00019998,2]
[359870321,1746389458124,-1861.83,0.00019998,2]
[359870322,1746389458134,-1861.83,0.00019998,2]
[359870323,1746389458144,-1861.83,0.00019998,2]
[359870324,1746389458154,-1861.83,0.00019998,2]
[359870325,1746389458164,-490.0,0.00019998,2]
[359870326,1746389458173,-450.0,0.00019998,2]
[359870327,1746389458182,-490.0,0.00019998,2]
[359870328,1746389458193,-520.0,0.00019998,2]
[359870329,1746389458203,-501.93,0.00019998,2]
[359870330,1746389458212,-501.93,0.00019998,2]
[359870331,1746389458223,-501.93,0.00019998,2]
[359870332,1746389458233,-501.93,0.00019998,2]
[359870333,1746389458243,-501.93,0.00019998,2]
[359870334,1746389458252,-501.93,0.00019998,2]
[359870335,1746389458262,-490.0,0.00019998,2]
[359870336,1746389458273,-501.93,0.00019998,2]
[359870337,1746389458282,-450.0,0.00019998,2]
[359870338,1746389458292,-450.0,0.00019998,2]
[359870339,1746389458303,-8.06534196,0.00019998,2]
[359870340,1746389458315,-212.27465804,0.00019998,2]
[359870341,1746389458324,-247.67534196,0.00019998,2]
[359870342,1746389458341,-470.0,0.00019997,2]
[359870343,1746389458351,-202.32465804,0.00019998,2]
[359870344,1746389458360,-490.0,0.00019998,2]
[359870345,1746389458370,-490.0,0.00019998,2]
[359870346,1746389458381,-490.0,0.00019998,2]
[359870347,1746389458390,-490.0,0.00019998,2]
[359870348,1746389458400,-490.0,0.00019998,2]
[359870349,1746389458410,-450.0,0.00019998,2]
[359870350,1746389458419,-450.0,0.00019998,2]
[359870351,1746389458428,-450.0,0.00019998,2]
[359870352,1746389458438,-450.0,0.00019998,2]
[359870353,1746389458447,-450.0,0.00019998,2]
[359870354,1746389458457,-450.0,0.00019998,2]
[359870355,1746389458467,-450.0,0.00019998,2]
[359870356,1746389458477,-450.0,0.00019998,2]
[359870357,1746389458487,-450.0,0.00019998,2]
[359870358,1746389458496,-450.0,0.00019998,2]
[359870359,1746389458506,-248.82,0.00019998,2]
[359870360,1746389458516,-450.0,0.00019998,2]
[359870361,1746389458526,-470.0,0.00019998,2]
[359870362,1746389458536,-450.0,0.00019998,2]
[359870363,1746389458545,-450.0,0.00019998,2]
[359870364,1746389458555,-450.0,0.00019998,2]
[359870365,1746389458569,-490.0,0.00019998,2]
[359870366,1746389458579,-450.0,0.00019998,2]
[359870367,1746389458589,-450.0,0.00019998,2]
[359870368,1746389458599,-450.0,0.00019998,2]
[359870369,1746389458609,-450.0,0.00019998,2]
[359870370,1746389458618,-514.82960506,0.00019998,2]
[359870371,1746389458628,-160.35532544,0.00019998,2]
[359870372,1746389458637,-450.0,0.00019998,2]
[359870373,1746389458647,-405.88,0.00019998,2]
[359870374,1746389458656,-160.73989368,0.00019998,2]
[359870375,1746389458666,-490.0,0.00019998,2]
[359870376,1746389458675,-151.0,0.00019998,2]
[359870377,1746389458685,-347.04,0.00019998,2]
[359870378,1746389458694,-245.520579,0.00019998,2]
[359870379,1746389458703,-450.0,0.00019998,2]
[359870380,1746389458712,-575.6,0.00019998,2]
[359870381,1746389458722,-450.0,0.00019998,2]
[359870382,1746389458732,-490.0,0.00019998,2]
[359870383,1746389458856,-490.0,0.00019998,2]
[359870384,1746389458866,-450.0,0.00019998,2]
[359870385,1746389458875,-490.0,0.00019998,2]
[359870386,1746389458885,-568.12,0.00019998,2]
[359870387,1746389458894,-450.0,0.00019998,2]
[359870388,1746389458904,-450.0,0.00019998,2]
[359870389,1746389458913,-450.0,0.00019998,2]
[359870390,1746389458922,-450.0,0.00019998,2]
[359870391,1746389458932,-450.0,0.00019998,2]
[359870392,1746389458941,-500.0,0.00019998,2]
[359870393,1746389458951,-450.0,0.00019998,2]
[359870394,1746389458960,-450.0,0.00019998,2]
[359870395,1746389458969,-500.0,0.00019998,2]
[359870396,1746389458978,-534.2,0.00019998,2]
[359870397,1746389458988,-549.04,0.00019998,2]
[359870398,1746389458997,-508.96,0.00019998,2]
[359870399,1746389459006,-500.0,0.00019998,2]
[359870400,1746389459015,-490.0,0.00019998,2]
[359870401,1746389459025,-500.0,0.00019998,2]
[359870402,1746389459034,-500.0,0.00019998,2]
[359870403,1746389459043,-500.0,0.00019998,2]
[359870404,1746389459052,-615.97932353,0.00019998,2]
[359870405,1746389459061,-450.0,0.00019998,2]
[359870406,1746389459070,-290.31,0.00019998,2]
[359870407,1746389459079,-490.0,0.00019998,2]
[359870408,1746389459089,-450.0,0.00019998,2]
[359870409,1746389459098,-209.74,0.00019998,2]
[359870410,1746389459107,-939.0,0.00019999,2]
[359870411,1746389459116,-500.0,0.00019999,2]
[359870412,1746389459125,-386739.01898423,0.00019999,2]
[359870413,1746389459137,-20883.49999921,0.00019999,2]
[359870414,1746389459148,-33183.78218419,0.00019999,2]
[359870415,1746389459160,-380.18472871,0.00019999,2]
[359870416,1746389459171,-81307.08818965,0.00019999,2]
[359870417,1746389459246,-166.82432378,0.000199,2]
[359870418,1746389459256,-450.0,0.00019996,2]
[359870419,1746389459265,-470.0,0.00019997,2]
[359870420,1746389459274,-450.0,0.00019997,2]
[359870421,1746389459283,-450.0,0.00019997,2]
[359870422,1746389459292,-5875.93287213,0.00019999,2]
[359870423,1746389459309,-450.0,0.00019996,2]
[359870424,1746389459318,-1435.51248912,0.00019999,2]
[359870425,1746389459331,-1940.0,0.00019999,2]
[359870426,1746389459342,-450017.68515504,0.00019999,2]
[359870427,1746389459353,-264.00351992,0.00019999,2]
[359870428,1746389459364,-17673.42265415,0.00019999,2]
[359870429,1746389459522,-30.31160448,0.00019997,2]
[359870430,1746389459533,-419.68839552,0.00019997,2]
[359870431,1746389459543,-6275.89498925,0.00019999,2]
[359870432,1746389459556,-459.501275,0.00019999,2]
[359870433,1746389460075,470.0,0.00027945,30]
[359870434,1746389490891,470.0,0.00027945,30]
[359870435,1746389666788,178.4,0.00018993,2]
[359870436,1746389860569,475.97,0.00017039,2]
[359870437,1746389860769,475.97,0.00019303,2]
[359870438,1746390320142,485.14581595,0.0003,30]
[359870439,1746390429696,-671.7562589,0.00019635,2]
[359870440,1746390429723,-671.7562589,0.00019687,2]
[359870441,1746390429751,-575.6157526,0.000197,2]
[359870442,1746390429777,-200.0,0.00019713,2]
[359870443,1746390429806,-150.0,0.00019727,2]
[359870444,1746390429832,-150.0,0.0001973,2]
[359870445,1746390429858,-207.4,0.0001973,2]
[359870446,1746390429886,-150.0,0.00019733,2]
[359870447,1746390429915,-150.0,0.00019734,2]
[359870448,1746390429942,-150.0,0.00019734,2]
[359870449,1746390429969,-150.0,0.00019735,2]
[359870450,1746390429995,-150.0,0.00019738,2]
[359870451,1746390430020,-150.0,0.00019739,2]
[359870452,1746390430048,-150.0,0.0001974,2]
[359870453,1746390430073,-150.0,0.00019742,2]
[359870454,1746390430098,-150.0,0.00019742,2]
[359870455,1746390430124,-150.0,0.00019749,2]
[359870456,1746390430150,-150.0,0.00019754,2]
[359870457,1746390430175,-150.0,0.00019757,2]
[359870458,1746390430202,-150.0,0.00019757,2]
[359870459,1746390430229,-150.0,0.00019763,2]
[359870460,1746390430255,-150.0,0.00019769,2]
[359870461,1746390430282,-150.0,0.00019769,2]
[359870462,1746390430310,-150.0,0.00019771,2]
[359870463,1746390430336,-150.0,0.00019772,2]
[359870464,1746390430362,-150.0,0.00019773,2]
[359870465,1746390430387,-150.0,0.00019774,2]
[359870466,1746390430414,-150.0,0.00019778,2]
[359870467,1746390430440,-150.0,0.00019784,2]
[359870468,1746390430466,-150.0,0.00019786,2]
[359870469,1746390430495,-300.0,0.00019786,2]
[359870470,1746390430521,-300.0,0.00019786,2]
[359870471,1746390430550,-1200.0,0.00019787,2]
[359870472,1746390430576,-300.0,0.00019787,2]
[359870473,1746390430602,-157.4398007,0.00019799,2]
[359870474,1746390430627,-891.0319289,0.00019799,2]
[359870476,1746390493374,1000.0,0.00018903,2]
[359870485,1746390631542,-150.0,0.00019726,2]
[359870486,1746390631552,-150.0,0.00019727,2]
[359870487,1746390631562,-150.0,0.00019729,2]
[359870488,1746390631571,-6.40958204,0.0001973,2]
[359870489,1746390631583,-143.59041796,0.0001973,2]
[359870490,1746390631592,-150.0,0.00019733,2]
[359870491,1746390631601,-150.0,0.00019734,2]
[359870492,1746390631610,-200.0,0.00019737,2]
[359870493,1746390631620,-150.0,0.00019738,2]
[359870494,1746390631630,-150.0,0.00019742,2]
[359870495,1746390631640,-150.0,0.00019745,2]
[359870496,1746390631649,-150.0,0.00019746,2]
[359870497,1746390631659,-150.0,0.00019747,2]
[359870498,1746390631668,-150.0,0.00019748,2]
[359870499,1746390631677,-150.0,0.00019748,2]
[359870500,1746390631687,-150.0,0.00019756,2]
[359870501,1746390631698,-150.0,0.00019759,2]
[359870502,1746390631707,-150.0,0.00019771,2]
[359870503,1746390631716,-150.0,0.00019772,2]
[359870504,1746390631726,-150.0,0.00019773,2]
[359870505,1746390631735,-150.0,0.00019779,2]
[359870506,1746390631746,-150.0,0.0001978,2]
[359870507,1746390631755,-150.0,0.00019784,2]
[359870508,1746390631764,-150.0,0.00019784,2]
[359870509,1746390631774,-150.0,0.00019785,2]
[359870510,1746390631783,-150.0,0.00019787,2]
[359870511,1746390631793,-150.0,0.00019789,2]
[359870512,1746390631802,-150.0,0.00019791,2]
[359870513,1746390631811,-493.78628922,0.00019791,2]
[359870516,1746390631835,-697.0,0.00019791,2]
[359870518,1746390631846,-9.21371078,0.00019791,2]
[359870520,1746390631855,-150.0,0.00019793,2]
[359870522,1746390631864,-150.0,0.00019794,2]
[359870524,1746390631873,-150.0,0.00019795,2]
[359870526,1746390631882,-150.0,0.00019796,2]
[359870528,1746390631891,-5108.9680711,0.00019799,2]
[359870530,1746390631901,-150.0,0.00019802,2]
[359870532,1746390631910,-150.0,0.00019807,2]
[359870534,1746390631920,-150.0,0.00019809,2]
[359870536,1746390631928,-150.0,0.00019816,2]
[359870538,1746390631938,-150.0,0.00019817,2]
[359870540,1746390631948,-150.0,0.00019821,2]
[359870542,1746390631957,-92.04284922,0.00019823,2]
[359870545,1746390631973,-57.95715078,0.00019823,2]
[359870549,1746390631983,-150.0,0.00019823,2]
[359870552,1746390631991,-126.95738684,0.00019827,2]
[359870555,1746390632008,-23.04261316,0.00019827,2]
[359870558,1746390632017,-150.0,0.00019832,2]
[359870560,1746390632026,-150.0,0.00019835,2]
[359870562,1746390632035,-91.95738684,0.00019839,2]
[359870599,1746390637597,-150.0,0.00019724,2]
[359870600,1746390637607,-150.0,0.00019727,2]
[359870601,1746390637616,-150.0,0.00019728,2]
[359870602,1746390637626,-150.0,0.00019731,2]
[359870603,1746390637635,-150.0,0.00019737,2]
[359870604,1746390637644,-150.0,0.00019739,2]
[359870605,1746390637653,-150.0,0.00019745,2]
[359870606,1746390637664,-150.0,0.00019748,2]
[359870607,1746390637673,-150.0,0.00019761,2]
[359870608,1746390637683,-150.0,0.00019762,2]
[359870609,1746390637692,-150.0,0.00019773,2]
[359870610,1746390637702,-150.0,0.00019773,2]
[359870611,1746390637711,-150.0,0.00019774,2]
[359870612,1746390637720,-150.0,0.00019775,2]
[359870613,1746390637730,-150.0,0.00019783,2]
[359870614,1746390637739,-150.0,0.00019786,2]
[359870615,1746390637749,-150.0,0.00019788,2]
[359870616,1746390637758,-150.0,0.000198,2]
[359870617,1746390637767,-150.0,0.00019816,2]
[359870618,1746390637777,-68.33725075,0.00019817,2]
[359870631,1746390639624,-150.0,0.00019753,2]
[359870632,1746390639634,-150.0,0.00019777,2]
[359870633,1746390639644,-150.0,0.00019809,2]
[359870634,1746390639654,-150.0,0.0001981,2]
[359870635,1746390639665,-81.66274925,0.00019817,2]
[359870636,1746390639675,-150.0,0.00019826,2]
[359870637,1746390639684,-150.0,0.00019826,2]
[359870638,1746390639693,-150.0,0.00019829,2]
[359870639,1746390639703,-58.04261316,0.00019839,2]
[359870640,1746390639713,-150.0,0.00019839,2]
[359870641,1746390639723,-150.0,0.0001984,2]
[359870642,1746390639732,-121.85523075,0.00019843,2]
[359870643,1746390639744,-28.14476925,0.00019843,2]
[359870644,1746390639754,-150.0,0.00019845,2]
[359870645,1746390639763,-150.0,0.00019845,2]
[359870646,1746390639775,-150.0,0.00019845,2]
[359870647,1746390639786,-1.14523075,0.00019848,2]
[359870648,1746390639807,-150.0,0.000198,2]
[359870649,1746390639816,-148.85476925,0.00019848,2]
[359870650,1746390639826,-150.0,0.00019848,2]
[359870651,1746390639835,-150.0,0.00019848,2]
[359870652,1746390639845,-150.0,0.00019851,2]
[359870653,1746390639854,-150.0,0.00019853,2]
[359870654,1746390639864,-150.0,0.00019854,2]
[359870655,1746390639874,-87.11090606,0.00019854,2]
[359870656,1746390639890,-62.88909394,0.00019854,2]
[359870657,1746390639899,-150.0,0.00019855,2]
[359870658,1746390639908,-150.0,0.00019855,2]
[359870659,1746390639918,-150.0,0.00019858,2]
[359870660,1746390639927,-150.0,0.0001986,2]
[359870661,1746390639937,-150.0,0.0001986,2]
[359870662,1746390639946,-150.0,0.00019862,2]
[359870663,1746390639955,-150.0,0.00019865,2]
[359870664,1746390639964,-150.0,0.00019866,2]
[359870665,1746390639974,-150.0,0.00019871,2]
[359870666,1746390639983,-150.0,0.00019873,2]
[359870667,1746390639993,-150.0,0.00019874,2]
[359870668,1746390640002,-150.0,0.00019875,2]
[359870669,1746390640011,-150.0,0.00019876,2]
[359870670,1746390640020,-150.0,0.00019882,2]
[359870671,1746390640030,-150.0,0.00019883,2]
[359870672,1746390640039,-150.0,0.00019885,2]
[359870673,1746390640048,-150.0,0.00019886,2]
[359870674,1746390640058,-150.0,0.00019889,2]
[359870675,1746390640067,-150.0,0.00019892,2]
[359870676,1746390640077,-150.0,0.00019894,2]
[359870677,1746390640087,-150.0,0.00019894,2]
[359870678,1746390640097,-150.0,0.00019894,2]
[359870679,1746390640106,-150.0,0.00019895,2]
[359870680,1746390640115,-305.44457318,0.00019897,2]
[359870681,1746390640124,-150.0,0.00019897,2]
[359870683,1746390640133,-305.44457318,0.00019897,2]
[359870685,1746390640143,-305.44457318,0.00019898,2]
[359870687,1746390640152,-305.44457318,0.00019898,2]
[359870689,1746390640162,-166.24449867,0.00019898,2]
[359870691,1746390640171,-166.24449861,0.00019898,2]
[359870693,1746390640180,-305.44457318,0.00019898,2]
[359870695,1746390640189,-305.44457318,0.00019899,2]
[359870697,1746390640198,-305.44457318,0.00019899,2]
[359870699,1746390640207,-305.44457318,0.00019899,2]
[359870701,1746390640217,-305.44457318,0.000199,2]
[359870703,1746390640226,-305.44457318,0.000199,2]
[359870705,1746390640235,-6517.29225905,0.000199,2]
[359870707,1746390640245,-150.0,0.000199,2]
[359870708,1746390640254,-150.0,0.00019904,2]
[359870709,1746390640264,-150.0,0.00019911,2]
[359870710,1746390640273,-150.0,0.00019911,2]
[359870711,1746390640283,-150.0,0.00019914,2]
[359870712,1746390640297,-150.0,0.00019914,2]
[359870713,1746390640306,-150.0,0.00019915,2]
[359870714,1746390640315,-150.0,0.00019915,2]